bitfinex-derivatives/quotes_ETHF0:USTF0_20250411
["timestamp","ask_amount","ask_price","bid_price","bid_amount"]
[1744350884955,0.852,1549.3,1549.2,1.29186]
[1744350885154,1.631,1549.4,1549.3,1.2917]
[1744350885355,1.631,1549.4,1549.3,2.9762]
[1744350885759,1.631,1549.4,1549.3,43.7762]
[1744350886467,1.7602,1549.5,1549.4,1.2917]
[1744350886765,3.37811849,1549.5,1549.4,6.184]
[1744350888062,1.631,1549.5,1549.4,6.184]
[1744350888466,1.631,1549.5,1549.4,3.2078]
[1744350888766,1.631,1549.5,1549.4,4.4995]
[1744350890066,2.5228,1549.5,1549.4,4.4995]
[1744350892066,0.8535,1549.7,1549.6,1.29153]
[1744350892264,0.8535,1549.7,1549.6,4.49933]
[1744350892569,2.14494,1549.7,1549.6,3.2078]
[1744350892867,3.75434,1549.7,1549.6,3.2078]
[1744350893971,1.29158,1549.6,1549.4,11.53208]
[1744350894268,1.6287,1549.6,1549.5,1.29161]
[1744350894762,0.8535,1549.7,1549.6,1.29153]
[1744350894957,3.77364,1549.7,1549.6,3.2078]
[1744350895164,1.29153,1549.6,1549.5,1.29155]
[1744350895364,3.78313,1549.6,1549.4,4.49943]
[1744350895667,3.78313,1549.6,1549.5,1.29161]
[1744350895862,2.4916,1549.6,1549.5,1.29161]
[1744350897269,3.78313,1549.6,1549.5,1.29161]
[1744350898569,3.78313,1549.6,1549.5,4.49941]
[1744350898870,2.4916,1549.6,1549.5,4.49941]
[1744350900061,2.4916,1549.6,1549.5,5.41771]
[1744350900262,0.8535,1549.7,1549.6,1.29153]
[1744350900467,2.5361,1549.7,1549.6,2.95433]
[1744350901068,1.29108,1550.2,1550.0,1.29119]
[1744350901265,3.81588,1550.1,1549.9,4.49905]
[1744350901472,1.6826,1550.0,1549.5,4.1261]
[1744350901668,1.29138,1549.8,1549.7,1.29144]
[1744350901868,2.97385,1550.0,1549.8,1.29136]
[1744350902068,1.6826,1549.9,1549.8,1.29136]
[1744350902270,1.6826,1549.9,1549.7,3.2078]
[1744350902571,1.7312,1549.8,1549.7,4.49924]
[1744350905567,1.7312,1549.8,1549.7,5.35504]
[1744350906672,1.7312,1549.8,1549.7,4.49924]
[1744350906871,4.64186,1549.8,1549.7,3.2078]
[1744350907174,3.3505,1549.8,1549.7,4.49924]
[1744350910572,1.29125,1550.0,1549.7,3.2078]
[1744350910779,2.95205,1549.9,1549.7,4.49918]
[1744350910967,0.64560001,1550.3,1549.7,3.2078]
[1744350911179,0.8358,1550.1,1550.0,1.29112]
[1744350911570,2.4965,1550.1,1550.0,2.92652]
[1744350914173,1.29093,1550.4,1550.2,1.29101]
[1744350914378,3.80163,1550.4,1550.2,1.29101]
[1744350914678,1.29095,1550.3,1550.1,5.32605]
[1744350914876,1.6683,1550.2,1550.1,5.32605]
[1744350915675,2.5192,1550.2,1550.1,5.32605]
[1744350916076,2.5192,1550.2,1550.1,46.12605]
[1744350916271,2.5192,1550.2,1550.1,45.29885]
[1744350918080,3.81023,1550.2,1550.1,44.0078]
[1744350918374,3.81023,1550.2,1550.1,45.29891]
[1744350918579,3.4086,1550.4,1550.1,45.29889]
[1744350918975,1.7054,1550.3,1550.2,1.29103]
[1744350919281,0.64560001,1550.6,1550.2,3.2078]
[1744350919474,1.29086,1550.4,1550.3,1.7354]
[1744350919778,1.29086,1550.4,1550.2,3.2078]
[1744350919978,1.7054,1550.4,1550.2,4.9432]
[1744350920179,1.7693,1550.5,1550.4,1.29086]
[1744350920369,1.7693,1550.5,1550.4,4.49866]
[1744350920568,1.7054,1550.6,1550.5,1.29078]
[1744350920768,2.6234,1550.6,1550.5,3.02618]
[1744350921167,1.7054,1550.6,1550.5,3.02618]
[1744350921370,0.9014,1550.7,1550.6,1.2907]
[1744350921578,2.4893,1550.7,1550.6,1.2907]
[1744350922578,3.77991,1550.7,1550.6,1.2907]
[1744350922777,3.77991,1550.7,1550.5,3.02614]
[1744350922971,2.8786,1550.6,1550.5,1.7354]
[1744350923377,2.8786,1550.6,1550.5,3.02618]
[1744350923378,1.5879,1550.6,1550.5,3.02618]
[1744350923578,2.8786,1550.6,1550.5,3.02618]
[1744350923779,1.5879,1550.6,1550.5,3.02618]
[1744350924484,1.5879,1550.6,1550.4,4.91567804]
[1744350924685,2.13178,1550.5,1550.4,4.06727804]
[1744350924989,0.841,1550.5,1550.4,5.35813804]
[1744350925187,0.841,1550.5,1550.4,6.92163804]
[1744350925583,1.6932,1550.5,1550.4,6.92163804]
[1744350926090,2.16574,1550.8,1550.6,1.2907]
[1744350926297,4.73224,1550.8,1550.6,4.4985]
[1744350926593,1.6932,1550.7,1550.6,4.4985]
[1744350926794,1.6932,1550.7,1550.6,6.062]
[1744350927199,2.98381,1550.7,1550.6,4.7713]
[1744350927490,1.6932,1550.7,1550.6,1.2907]
[1744350927706,2.98385,1550.7,1550.5,3.75062]
[1744350927892,1.6932,1550.7,1550.4,4.06727804]
[1744350928090,1.5893,1550.6,1550.5,1.29077]
[1744350928389,3.03908,1550.8,1550.6,1.29066]
[1744350928595,4.62838,1550.8,1550.6,1.29063]
[1744350928986,4.7971,1550.7,1550.4,0.85947804]
[1744350929190,1.29078,1550.5,1550.4,0.00967804]
[1744350929590,3.10548,1550.5,1550.4,0.00967804]
[1744350930091,1.5893,1550.6,1550.5,1.29078]
[1744350930292,0.9242,1550.7,1550.6,1.2907]
[1744350930593,0.9242,1550.7,1550.5,3.4421]
[1744350930899,3.0029,1550.6,1550.5,3.4421]
[1744350931096,3.0029,1550.6,1550.5,1.6556]
[1744350931400,1.7122,1550.6,1550.5,2.94638]
[1744350931697,0.9242,1550.7,1550.6,1.2907]
[1744350931898,1.2907,1550.6,1550.4,4.50826804]
[1744350932199,3.92708,1550.7,1550.5,1.29078]
[1744350932391,1.7122,1550.6,1550.5,1.29078]
[1744350932589,1.7122,1550.6,1550.5,2.94638]
[1744350932790,0.9242,1550.7,1550.6,1.2907]
[1744350933000,2.6364,1550.7,1550.6,3.8181]
[1744350933205,2.6364,1550.7,1550.6,1.6556]
[1744350933503,2.6364,1550.7,1550.6,2.9463]
[1744350934195,1.7122,1550.7,1550.6,2.9463]
[1744350934401,7.49859,1550.8,1550.6,7.0021]
[1744350934693,1.29051,1550.9,1550.7,2.98088]
[1744350934904,1.29061,1550.7,1550.6,4.0558]
[1744350935098,1.29058,1550.8,1550.6,0.848]
[1744350935299,1.8225,1550.7,1550.6,2.13864]
[1744350935601,1.8225,1550.7,1550.6,3.82894]
[1744350936197,1.29058,1550.8,1550.6,3.82894]
[1744350936394,1.29058,1550.8,1550.7,1.7236]
[1744350936795,0.64560001,1550.8,1550.6,3.2078]
[1744350937093,1.29073,1550.6,1550.4,4.50827804]
[1744350937298,1.29073,1550.6,1550.4,6.23187804]
[1744350937798,1.29078,1550.5,1550.4,4.94107804]
[1744350939504,1.29078,1550.5,1550.4,0.00967804]
[1744350940099,3.01985,1550.6,1550.4,1.30051804]
[1744350940293,1.29078,1550.5,1550.4,1.62327804]
[1744350940699,1.29078,1550.5,1550.4,0.00967804]
[1744350941710,2.93258,1550.5,1550.4,0.00967804]
[1744350941910,7.39858,1550.5,1550.4,0.00967804]
[1744350942206,1.29103,1550.2,1550.1,46.18581]
[1744350942405,1.5923,1550.4,1550.1,46.18581]
[1744350942602,0.8913,1550.3,1550.1,46.18581]
[1744350942808,1.5923,1550.2,1550.1,46.18581]
[1744350943010,2.88333,1550.2,1550.1,44.8947]
[1744350943309,2.88333,1550.2,1550.1,46.18581]
[1744350943497,1.5923,1550.2,1550.1,47.75151]
[1744350944009,0.00967804,1550.3,1550.2,1.29103]
[1744350944213,0.00967804,1550.3,1550.2,3.70113]
[1744350944606,1.30062804,1550.3,1550.2,2.4101]
[1744350944808,1.30062804,1550.3,1550.2,3.70113]
[1744350945008,2.89292804,1550.3,1550.2,3.70113]
[1744350945314,2.89292804,1550.3,1550.2,2.4101]
[1744350945905,2.89292804,1550.3,1550.2,1.5657]
[1744350946403,1.29103,1550.2,1550.1,44.0078]
[1744350946604,2.91783,1550.2,1550.1,44.0078]
[1744350948111,1.29111,1550.1,1550.0,0.00967804]
[1744350948311,0.00340347,1550.0,1549.9,3.06948]
[1744350948615,0.00340347,1550.0,1549.9,45.48538]
[1744350948909,1.6269,1550.0,1549.9,45.48197653]
[1744350950010,1.6269,1550.0,1549.9,42.09128]
[1744350950605,1.6269,1550.0,1549.9,43.70718]
[1744350951413,1.839,1550.1,1550.0,1.2912]
[1744350951711,3.5532,1550.1,1550.0,3.7612]
[1744350951908,3.5532,1550.1,1550.0,6.969]
[1744350952115,0.00967804,1550.3,1550.2,1.29103]
[1744350952314,11.807331,1550.4,1550.3,1.29435347]
[1744350952809,11.80392753,1550.4,1550.3,42.09095]
[1744350953009,11.80392753,1550.4,1550.3,40.8]
[1744350953809,11.80392753,1550.4,1550.3,43.71605]
[1744350954010,10.08972753,1550.4,1550.3,44.54565]
[1744350955713,1.72387804,1550.5,1550.4,1.29086]
[1744350955911,1.72387804,1550.5,1550.4,2.95936]
[1744350958007,1.29086,1550.4,1550.3,41.6296]
[1744350958215,3.01471804,1550.5,1550.3,42.92053]
[1744350958415,1.29086,1550.4,1550.3,43.3508]
[1744350958608,2.96866,1550.4,1550.3,43.3508]
[1744350958912,2.96866,1550.4,1550.3,40.8]
[1744350960912,1.6778,1550.4,1550.3,42.09095]
[1744350961117,1.30049804,1550.5,1550.3,40.8]
[1744350961415,2.97399804,1550.5,1550.4,5.6831]
[1744350962021,2.97399804,1550.5,1550.4,2.4753]
[1744350962317,1.29086,1550.4,1550.3,41.6328]
[1744350962515,2.96436,1550.4,1550.3,40.8]
[1744350962916,2.96436,1550.4,1550.3,43.2503]
[1744350963318,2.96436,1550.4,1550.3,42.4569]
[1744350963514,2.96436,1550.4,1550.3,40.8]
[1744350964521,7.96436,1550.4,1550.3,40.8]
[1744350964823,7.96436,1550.4,1550.0,3.2078]
[1744350964824,1.29111,1550.1,1550.0,3.2078]
[1744350965016,1.29111,1550.1,1550.0,3.19471849]
[1744350965217,1.29111,1550.1,1550.0,43.99471849]
[1744350965721,2.99271,1550.1,1550.0,40.8]
[1744350966524,2.99271,1550.1,1550.0,43.767]
[1744350966823,1.7016,1550.1,1550.0,43.767]
[1744350967024,5.75509,1550.2,1550.0,43.767]
[1744350967215,7.38729,1550.2,1550.1,2.5781]
[1744350967416,7.37420849,1550.2,1550.1,2.5781]
[1744350968225,7.37420849,1550.2,1550.1,1.7059]
[1744350968620,1.29111,1550.1,1550.0,40.8]
[1744350968819,2.92331,1550.1,1550.0,1.7059]
[1744350969530,1.2912,1550.0,1549.9,0.8243]
[1744350969719,4.7266,1550.0,1549.9,41.6243]
[1744350970427,4.7266,1550.0,1549.9,43.2063]
[1744350971126,3.4354,1550.0,1549.9,43.2063]
[1744350971627,4.7266,1550.0,1549.9,43.2063]
[1744350972529,4.7266,1550.0,1549.9,44.49758]
[1744350973628,4.7266,1550.0,1549.9,43.2063]
[1744350973827,3.4354,1550.0,1549.9,44.49758]
[1744350974028,5.0965185,1550.2,1549.9,43.2063]
[1744350974228,18.37187269,1550.4,1550.2,1.29098]
[1744350974422,1.29095,1550.3,1550.2,1.29098]
[1744350974622,12.60586118,1550.4,1550.3,1.29095]
[1744350974822,12.60586118,1550.4,1550.3,3.81355]
[1744350975031,13.89672118,1550.4,1550.3,3.81355]
[1744350975423,12.60586118,1550.4,1550.3,3.81355]
[1744350975930,13.89672118,1550.4,1550.3,3.81355]
[1744350976134,12.60586118,1550.4,1550.3,3.81355]
[1744350976329,5.19531805,1550.5,1550.3,3.81355]
[1744350976524,5.19531805,1550.5,1550.4,1.6699]
[1744350976729,6.40811805,1550.5,1550.4,2.96076]
[1744350976935,6.40811805,1550.5,1550.4,44.60336]
[1744350977432,4.47167804,1550.5,1550.4,44.60336]
[1744350978533,5.76245804,1550.5,1550.4,44.60336]
[1744350978734,5.76245804,1550.5,1550.4,43.3125]
[1744350979336,7.35395804,1550.5,1550.4,43.3125]
[1744350980032,7.35395804,1550.5,1550.4,42.4699]
[1744350980232,2.89195804,1550.5,1550.4,42.4699]
[1744350980425,5.51825001,1550.7,1550.4,42.4699]
[1744350980426,17.69099718,1551.1,1550.4,51.96856]
[1744350980627,18.3472968,1551.0,1550.6,3.2078]
[1744350980824,1.29053,1550.8,1550.7,2.5276]
[1744350981027,2.88201,1550.9,1550.7,3.81821]
[1744350981227,1.29053,1550.8,1550.7,2.5276]
[1744350981427,2.88203,1550.8,1550.7,2.5276]
[1744350981629,1.5915,1550.8,1550.7,2.5276]
[1744350981937,1.5915,1550.8,1550.7,3.81821]
[1744350982838,2.89372,1551.0,1550.8,1.29053]
[1744350983037,4.58622,1551.0,1550.8,7.01683]
[1744350983338,10.12678312,1550.9,1550.8,7.01683]
[1744350983538,10.12678312,1550.9,1550.8,5.32393]
[1744350984038,11.41723312,1550.9,1550.8,4.0334]
[1744350984242,13.10973312,1550.9,1550.8,0.8256]
[1744350984540,1.29053,1550.8,1550.7,0.8188]
[1744350984741,2.98303,1550.8,1550.7,0.8188]
[1744350985532,1.29061,1550.7,1550.6,3.21747804]
[1744350985839,4.66221,1550.7,1550.6,3.21747804]
[1744350986340,4.66221,1550.7,1550.6,0.00967804]
[1744350992640,11.41735312,1550.8,1550.6,1.30037804]
[1744350992843,1.29061,1550.7,1550.6,0.00967804]
[1744350993140,2.86321,1550.7,1550.6,0.00967804]
[1744350993442,7.32421,1550.7,1550.6,0.00967804]
[1744350993830,7.96981001,1550.7,1550.6,0.00967804]
[1744350995443,11.17761001,1550.7,1550.6,0.00967804]
[1744350996444,16.17761001,1550.7,1550.6,0.00967804]
[1744350997846,1.29078,1550.5,1550.4,40.8]
[1744350998047,4.49858,1550.5,1550.4,40.8]
[1744350998545,6.23298,1550.5,1550.4,40.8]
[1744350999945,3.02518,1550.5,1550.4,40.8]
[1744351000350,3.02518,1550.5,1550.4,43.3672]
[1744351000550,13.15196312,1550.5,1550.4,43.3672]
[1744351001653,10.12678312,1550.5,1550.4,44.65806]
[1744351001852,11.41756312,1550.5,1550.4,43.3672]
[1744351002949,13.06286312,1550.5,1550.4,43.3672]
[1744351003652,2.93608,1550.5,1550.4,43.3672]
[1744351017658,0.00967804,1550.6,1550.5,1.29078]
[1744351017853,0.00967804,1550.6,1550.5,2.98218]
[1744351018061,1.30037804,1550.6,1550.5,1.6914]
[1744351018261,11.42716116,1550.6,1550.5,1.6914]
[1744351019449,13.01336116,1550.6,1550.5,1.6914]
[1744351019648,13.85896116,1550.6,1550.5,1.6914]
[1744351020457,13.01336116,1550.6,1550.5,1.6914]
[1744351022055,2.88657804,1550.6,1550.5,1.6914]
[1744351023661,1.30037804,1550.6,1550.5,1.6914]
[1744351028858,2.94497804,1550.6,1550.5,1.6914]
[1744351029465,1.30037804,1550.6,1550.5,1.6914]
[1744351030960,0.00967804,1550.6,1550.5,1.6914]
[1744351031465,1.30037804,1550.6,1550.5,1.6914]
[1744351032770,3.76897804,1550.6,1550.5,1.6914]
[1744351034164,0.00967804,1550.6,1550.5,1.6914]
[1744351034371,0.00967804,1550.6,1550.5,2.98218]
[1744351035857,10.13646116,1550.6,1550.5,2.98218]
[1744351039366,0.00967804,1550.6,1550.5,2.98218]
[1744351041266,0.00967804,1550.6,1550.5,6.18998]
[1744351044270,0.00967804,1550.6,1550.5,4.8992]
[1744351044575,0.00967804,1550.6,1550.5,6.18998]
[1744351046276,1.30037804,1550.6,1550.5,4.8992]
[1744351046482,0.00967804,1550.6,1550.5,4.49858]
[1744351046673,2.42007804,1550.6,1550.5,6.17088]
[1744351047280,2.42007804,1550.6,1550.5,2.96308]
[1744351047877,3.71077804,1550.6,1550.5,1.6723]
[1744351048076,3.71077804,1550.6,1550.4,42.95864]
[1744351048283,1.5954,1550.5,1550.4,44.63094]
[1744351053082,2.4262,1550.5,1550.4,44.63094]
[1744351053583,0.00967804,1550.6,1550.5,1.29078]
[1744351053889,0.00967804,1550.6,1550.5,3.00028]
[1744351055593,1.58167804,1550.6,1550.5,3.00028]
[1744351057896,2.87237804,1550.6,1550.5,1.7095]
[1744351058399,2.87237804,1550.6,1550.4,46.16639]
[1744351058590,2.517,1550.5,1550.4,47.77059]
[1744351059497,0.00967804,1550.6,1550.5,1.29078]
[1744351059698,0.00967804,1550.6,1550.5,2.89498]
[1744351061093,1.72667804,1550.6,1550.5,2.89498]
[1744351061704,1.29078,1550.5,1550.4,44.8756]
[1744351061892,1.29078,1550.5,1550.4,46.4474]
[1744351062194,2.09778,1550.5,1550.4,43.2396]
[1744351062396,0.807,1550.5,1550.4,43.66266]
[1744351062797,2.4403,1550.5,1550.4,43.66266]
[1744351064101,3.73108,1550.5,1550.4,40.8]
[1744351064599,2.4403,1550.5,1550.4,40.8]
[1744351065001,3.73108,1550.5,1550.4,40.8]
[1744351075409,1.29086,1550.4,1550.3,0.00967804]
[1744351075718,6.94146,1550.4,1550.3,0.00967804]
[1744351076014,11.94146,1550.4,1550.3,0.00967804]
[1744351078019,6.94146,1550.4,1550.3,0.00967804]
[1744351078412,11.94146,1550.4,1550.3,0.00967804]
[1744351082921,8.73366,1550.4,1550.3,0.00967804]
[1744351083223,3.73366,1550.4,1550.3,0.00967804]
[1744351083521,6.94146,1550.4,1550.3,0.00967804]
[1744351083723,19.60918476,1550.4,1550.3,0.00967804]
[1744351089326,16.40138476,1550.4,1550.3,0.00967804]
[1744351089624,19.60918476,1550.4,1550.3,0.00967804]
[1744351090827,17.06312922,1550.4,1550.3,0.00967804]
[1744351091826,10.12166922,1550.4,1550.3,0.00967804]
[1744351092029,10.12166922,1550.4,1550.3,1.63677804]
[1744351092626,10.12166922,1550.4,1550.3,7.92772804]
[1744351095323,6.39903805,1550.6,1550.4,1.29083]
[1744351095522,5.75343804,1550.6,1550.5,1.6562]
[1744351100332,5.75343804,1550.6,1550.4,1.6867]
[1744351100333,1.29078,1550.5,1550.4,1.6867]
[1744351100523,1.29078,1550.5,1550.4,3.2956]
[1744351106331,2.97398,1550.5,1550.4,3.2956]
[1744351107134,2.97398,1550.5,1550.4,1.6867]
[1744351107333,1.29086,1550.4,1550.3,1.73837804]
[1744351107533,1.29086,1550.4,1550.3,0.00967804]
[1744351107534,3.79086,1550.4,1550.3,0.00967804]
[1744351111636,6.99866,1550.4,1550.3,0.00967804]
[1744351112939,1.29095,1550.3,1550.2,40.8]
[1744351113137,1.2912,1550.0,1549.9,1.7303]
[1744351113439,1.2912,1550.0,1549.9,1.71721849]
[1744351113640,1.2912,1550.0,1549.9,42.51721849]
[1744351114337,2.9529,1550.0,1549.9,42.51721849]
[1744351115032,3.745,1550.0,1549.9,42.51721849]
[1744351115640,8.196,1550.0,1549.9,42.51721849]
[1744351115834,11.4038,1550.0,1549.9,40.8]
[1744351116931,3.745,1550.0,1549.9,40.8]
[1744351117131,1.29117,1550.1,1549.9,40.8]
[1744351117337,1.29117,1550.1,1550.0,3.343]
[1744351117843,3.56399001,1550.2,1550.0,6.5508]
[1744351118141,3.56399001,1550.2,1550.1,1.7006]
[1744351118329,3.5509085,1550.2,1550.1,1.7006]
[1744351119338,1.2912,1550.0,1549.9,40.8]
[1744351119644,1.29128,1549.9,1549.8,0.00967804]
[1744351119844,2.88428,1549.9,1549.8,0.00967804]
[1744351120444,2.88428,1549.9,1549.8,40.80967804]
[1744351121946,4.53188,1549.9,1549.8,40.80967804]
[1744351122649,1.29128,1549.9,1549.8,41.61587804]
[1744351123950,2.98138,1549.9,1549.8,41.61587804]
[1744351127542,5.74225,1550.0,1549.8,44.82367804]
[1744351127743,4.451,1550.0,1549.9,2.5616]
[1744351127945,1.29114,1550.1,1549.9,2.5616]
[1744351128145,1.29114,1550.1,1550.0,1.7251]
[1744351128347,11.41273922,1550.2,1550.0,1.7251]
[1744351128542,11.41273922,1550.2,1550.1,41.5989]
[1744351128752,11.39965771,1550.2,1550.1,41.5989]
[1744351128952,13.13625771,1550.2,1550.1,41.5989]
[1744351130654,3.02767,1550.2,1550.1,41.5989]
[1744351131945,3.02767,1550.2,1550.1,40.8]
[1744351132457,6.23547,1550.2,1550.1,40.8]
[1744351133056,1.29128,1549.9,1549.8,0.00967804]
[1744351133254,1.29153,1549.6,1549.5,3.21]
[1744351133467,5.73953,1549.6,1549.5,1.5792]
[1744351133647,5.73953,1549.6,1549.4,13.1737814]
[1744351133648,1.29501347,1549.5,1549.4,10.7547814]
[1744351133851,2.95951347,1549.5,1549.4,43.168]
[1744351134251,2.95611,1549.5,1549.4,43.16459653]
[1744351134850,3.78631,1549.5,1549.4,42.3792]
[1744351135053,3.78631,1549.5,1549.4,40.8]
[1744351135450,4.43191001,1549.5,1549.4,40.8]
[1744351136056,4.43191001,1549.5,1549.4,42.4177]
[1744351138370,0.00967804,1549.6,1549.4,45.6255]
[1744351138579,0.00967804,1549.6,1549.5,1.6705]
[1744351140676,1.30120804,1549.6,1549.5,1.6705]
[1744351141079,0.00967804,1549.6,1549.5,1.6705]
[1744351141574,0.00967804,1549.6,1549.5,2.96211]
[1744351141775,0.00967804,1549.6,1549.5,7.96211]
[1744351142376,0.00967804,1549.6,1549.5,48.76211]
[1744351143072,1.30120804,1549.6,1549.5,42.4705]
[1744351144074,0.00967804,1549.6,1549.5,43.76211]
[1744351146580,0.00967804,1549.6,1549.5,48.76211]
[1744351148583,0.00967804,1549.6,1549.5,43.76211]
[1744351149477,1.30120804,1549.6,1549.5,42.4705]
[1744351151285,0.00967804,1549.6,1549.5,42.4705]
[1744351151682,1.30120804,1549.6,1549.5,42.4705]
[1744351151887,0.00967804,1549.6,1549.5,42.4705]
[1744351152285,0.00967804,1549.6,1549.5,43.76211]
[1744351154294,5.74920804,1549.6,1549.5,40.8]
[1744351154981,7.37060804,1549.6,1549.5,40.8]
[1744351159885,5.74920804,1549.6,1549.5,40.8]
[1744351160088,0.00967804,1549.6,1549.5,40.8]
[1744351160288,0.00967804,1549.6,1549.5,42.3721]
[1744351160682,0.00967804,1549.6,1549.5,48.66371]
[1744351165789,0.00967804,1549.6,1549.5,43.66371]
[1744351166397,0.00967804,1549.6,1549.5,46.87151]
[1744351167100,0.00967804,1549.6,1549.5,43.66371]
[1744351167296,0.00967804,1549.6,1549.5,46.87151]
[1744351168100,1.30120804,1549.6,1549.5,45.5799]
[1744351168301,0.00967804,1549.6,1549.5,45.5799]
[1744351168602,1.30120804,1549.6,1549.5,45.5799]
[1744351168802,2.87840804,1549.6,1549.5,45.5799]
[1744351168994,1.58687804,1549.6,1549.5,46.87151]
[1744351171409,0.00967804,1549.6,1549.5,46.87151]
[1744351177810,1.30120804,1549.6,1549.5,40.8]
[1744351178106,4.56110804,1549.6,1549.5,40.8]
[1744351179403,1.66717804,1549.6,1549.5,42.09161]
[1744351181612,1.66717804,1549.6,1549.5,45.29941]
[1744351182913,2.95870804,1549.6,1549.5,44.0078]
[1744351183509,2.95870804,1549.6,1549.5,45.6739]
[1744351183710,2.95870804,1549.6,1549.5,44.0078]
[1744351184015,2.95870804,1549.6,1549.5,40.8]
[1744351185110,7.95870804,1549.6,1549.5,40.8]
[1744351185418,7.40370804,1549.6,1549.5,40.8]
[1744351186317,12.40370804,1549.6,1549.5,40.8]
[1744351186512,1.2917,1549.4,1549.3,0.00967804]
[1744351187013,1.2917,1549.4,1549.3,40.80967804]
[1744351187210,2.9336,1549.4,1549.3,40.80967804]
[1744351187921,1.6419,1549.4,1549.3,40.80967804]
[1744351188722,1.6419,1549.4,1549.3,45.30925804]
[1744351189018,1.6419,1549.4,1549.3,46.90665804]
[1744351189221,1.6792,1549.5,1549.3,46.90665804]
[1744351189413,1.6792,1549.5,1549.4,4.6371]
[1744351189623,3.413,1549.5,1549.4,4.6371]
[1744351190322,3.413,1549.5,1549.4,3.3454]
[1744351191226,3.413,1549.5,1549.4,4.6371]
[1744351191613,10.14104407,1549.6,1549.5,1.29161]
[1744351191821,10.14104407,1549.6,1549.5,6.11751]
[1744351193828,0.00967804,1549.6,1549.5,6.11751]
[1744351194834,1.30120804,1549.6,1549.5,6.11751]
[1744351195133,0.00967804,1549.6,1549.5,6.11751]
[1744351195937,1.30120804,1549.6,1549.5,1.6181]
[1744351196132,3.84210804,1549.6,1549.4,3.01899]
[1744351196333,0.864,1549.5,1549.4,3.01899]
[1744351196634,3.83661,1549.5,1549.4,1.735]
[1744351196835,1.2917,1549.4,1549.3,54.78545944]
[1744351197038,1.681,1549.4,1549.3,56.07723944]
[1744351197536,1.681,1549.4,1549.3,57.81223944]
[1744351199135,1.681,1549.4,1549.3,56.52045944]
[1744351199325,2.9727,1549.4,1549.3,56.52045944]
[1744351199630,1.681,1549.4,1549.3,56.52045944]
[1744351200225,0.864,1549.5,1549.3,56.52045944]
[1744351200443,2.53107804,1549.6,1549.5,1.29161]
[1744351200626,2.53107804,1549.6,1549.5,4.49941]
[1744351200939,10.14104407,1549.6,1549.5,5.32821]
[1744351201436,28.54806898,1550.1,1549.5,5.32821]
[1744351201440,28.54806898,1550.1,1549.8,3.2078]
[1744351201441,20.23257897,1550.1,1549.8,3.2078]
[1744351201631,36.69604015,1550.3,1550.2,4.49883]
[1744351201837,47.84926515,1550.5,1550.4,1.29086]
[1744351202032,47.15203514,1550.5,1550.4,45.29866]
[1744351202341,47.15203514,1550.5,1550.4,42.61042259]
[1744351202633,47.15203514,1550.5,1550.4,41.59813055]
[1744351202935,63.26463514,1550.5,1550.4,41.59813055]
[1744351203145,84.55541514,1550.5,1550.4,41.59813055]
[1744351203444,72.09521514,1550.5,1550.4,0.79813055]
[1744351203737,1.29086,1550.4,1550.3,0.00967804]
[1744351203939,16.74006,1550.4,1550.3,0.00967804]
[1744351204141,21.74006,1550.4,1550.3,0.00967804]
[1744351204331,21.74006,1550.4,1550.3,40.80967804]
[1744351204739,15.4492,1550.4,1550.3,40.80967804]
[1744351205134,14.5847,1550.4,1550.3,40.80967804]
[1744351205335,15.87556,1550.4,1550.3,40.80967804]
[1744351205540,15.4492,1550.4,1550.3,40.80967804]
[1744351205839,14.5847,1550.4,1550.3,42.89880326]
[1744351206032,14.5847,1550.4,1550.3,44.53800326]
[1744351206429,1.6799,1550.4,1550.3,44.53800326]
[1744351206635,0.00967804,1550.6,1550.5,1.29078]
[1744351206844,12.9048,1550.5,1550.3,40.80967804]
[1744351207241,0.00967804,1550.6,1550.4,2.92999]
[1744351207435,12.9048,1550.5,1550.4,3.72738605]
[1744351207937,0.00967804,1550.6,1550.5,1.29078]
[1744351208139,3.2078,1550.7,1550.6,1.2907]
[1744351208335,3.2078,1550.7,1550.6,10.7317]
[1744351208531,3.2078,1551.0,1550.6,13.11389605]
[1744351208841,18.9695,1551.1,1550.7,1.5848]
[1744351209044,3.2078,1550.8,1550.7,0.79739605]
[1744351209431,16.1126,1550.8,1550.7,0.79739605]
[1744351209829,16.1126,1550.8,1550.7,2.08800605]
[1744351210035,16.1126,1550.8,1550.7,0.79739605]
[1744351210340,16.1126,1550.8,1550.7,1.29061]
[1744351210543,3.2078,1551.0,1550.9,1.29045]
[1744351211351,0.00967804,1551.1,1551.0,1.29036]
[1744351212138,0.00967804,1551.1,1551.0,2.97786]
[1744351212336,12.91447804,1551.1,1550.9,6.58401]
[1744351212636,16.1126,1551.0,1550.7,5.2721]
[1744351212838,19.83527,1551.0,1550.8,1.2905]
[1744351213047,14.522,1550.9,1550.8,1.2905]
[1744351213246,14.522,1550.9,1550.5,0.8659]
[1744351213442,1.29078,1550.5,1550.4,0.79373345]
[1744351213739,1.29078,1550.5,1550.2,1.291]
[1744351213943,18.6647,1550.4,1550.2,1.291]
[1744351214241,19.95556,1550.4,1550.2,1.29103]
[1744351214450,19.95556,1550.4,1550.3,40.80967804]
[1744351214647,18.6647,1550.4,1550.3,40.80967804]
[1744351214942,18.6647,1550.4,1550.3,42.10062804]
[1744351215140,2.14764,1550.5,1550.3,42.10062804]
[1744351215141,3.2078,1550.5,1550.4,1.29086]
[1744351215446,17.8496,1550.5,1550.4,3.01956]
[1744351215641,17.8496,1550.5,1550.3,42.10058804]
[1744351215848,14.6418,1550.4,1550.3,42.10058804]
[1744351216044,14.6418,1550.4,1550.3,42.10062804]
[1744351216246,15.93266,1550.4,1550.3,40.80967804]
[1744351216446,15.5082,1550.4,1550.3,42.10062804]
[1744351216951,15.5082,1550.4,1550.3,40.80967804]